bitfinex/quotes_SOLUSD_20250903
["timestamp","ask_amount","ask_price","bid_price","bid_amount"]
[1756915103858,0.06,211.91,211.9,89.07695309]
[1756915104071,0.06,211.91,211.9,89.01695309]
[1756915104272,0.06,211.91,211.9,83.87042198]
[1756915104464,0.06,211.91,211.9,88.97695309]
[1756915105564,0.06,211.91,211.9,89.03695309]
[1756915105876,0.06,211.91,211.9,88.97695309]
[1756915106086,0.06,211.91,211.9,89.54325795]
[1756915107380,0.06,211.91,211.9,63.54325795]
[1756915107583,0.06,211.94,211.93,44.98644826]
[1756915107878,0.06,211.94,211.93,82.32644826]
[1756915108480,0.06,211.94,211.93,87.0449874]
[1756915108857,0.06,211.94,211.93,92.15151851]
[1756915109180,0.78,211.94,211.93,87.0249874]
[1756915109483,0.78,211.94,211.93,92.13151851]
[1756915111370,0.78,211.94,211.93,86.72066426]
[1756915111881,0.78,211.94,211.93,91.82719537]
[1756915112085,0.78,211.94,211.93,86.72066426]
[1756915112686,0.78,211.94,211.93,91.82719537]
[1756915113693,0.78,211.94,211.93,92.11151851]
[1756915113694,0.06,211.94,211.93,92.11151851]
[1756915114771,0.78,211.94,211.93,87.0049874]
[1756915114973,0.78,211.94,211.93,92.11151851]
[1756915115458,0.06,211.94,211.93,54.81151851]
[1756915115656,0.78,211.94,211.93,92.09151851]
[1756915115875,0.78,211.94,211.93,86.9649874]
[1756915116064,0.78,211.94,211.93,92.07151851]
[1756915116264,0.78,211.94,211.93,54.81151851]
[1756915116460,0.78,211.94,211.93,92.07151851]
[1756915117086,0.78,211.94,211.93,91.78719537]
[1756915117886,0.78,211.94,211.93,49.42066426]
[1756915118062,0.78,211.94,211.93,86.66066426]
[1756915119791,0.78,211.94,211.93,91.76719537]
[1756915120366,0.06,211.94,211.93,92.05151851]
[1756915121362,0.78,211.94,211.93,86.9449874]
[1756915121576,0.78,211.94,211.93,92.05151851]
[1756915121763,0.78,211.94,211.93,49.56282583]
[1756915121977,0.78,211.94,211.93,86.80066426]
[1756915122488,0.78,211.94,211.93,86.94066426]
[1756915124271,0.78,211.94,211.93,92.04719537]
[1756915124978,0.78,211.94,211.93,86.92066426]
[1756915125179,0.78,211.94,211.93,92.02719537]
[1756915125784,0.78,211.94,211.93,86.92066426]
[1756915126092,0.78,211.94,211.93,87.06066426]
[1756915126284,0.78,211.94,211.93,92.16719537]
[1756915126975,0.78,211.94,211.93,54.52719537]
[1756915127377,0.78,211.94,211.93,92.16719537]
[1756915127988,0.78,211.94,211.93,87.06066426]
[1756915128583,0.78,211.94,211.93,82.34212512]
[1756915128784,0.78,211.94,211.93,18.70212512]
[1756915128971,0.78,211.94,211.93,56.34212512]
[1756915129470,0.78,211.94,211.93,61.06066426]
[1756915131800,0.78,211.94,211.93,61.00066426]
[1756915136233,0.06,211.94,211.93,66.10719537]
[1756915136386,0.71,211.94,211.93,66.10719537]
[1756915136585,0.71,211.94,211.93,61.00066426]
[1756915137893,0.71,211.94,211.93,23.42066426]
[1756915138091,0.71,211.94,211.93,18.70212512]
[1756915138288,5.81653111,211.94,211.93,13.59559401]
[1756915139497,0.71,211.94,211.93,13.59559401]
[1756915139688,5.81653111,211.94,211.93,13.59559401]
[1756915140187,0.71,211.94,211.93,13.59559401]
[1756915141501,5.81653111,211.94,211.93,13.59559401]
[1756915141883,10.53484761,211.94,211.92,5.10653111]
[1756915142078,5.75653111,211.93,211.91,0.03]
[1756915142300,0.65,211.93,211.91,0.03]
[1756915142517,5.10653111,211.92,211.91,0.03]
[1756915142881,5.75653111,211.92,211.91,0.03]
[1756915143084,10.4752929,211.92,211.91,0.03]
[1756915143384,5.75653111,211.92,211.91,0.03]
[1756915143594,8.63943325,211.92,211.91,0.03]
[1756915144907,0.65,211.92,211.91,0.03]
[1756915145107,3.92067146,211.92,211.91,0.03]
[1756915145514,8.63943325,211.92,211.91,0.03]
[1756915146913,3.92067146,211.92,211.91,0.03]
[1756915147786,17.0033573,211.92,211.91,0.03]
[1756915148613,3.92067146,211.92,211.91,0.03]
[1756915149202,5.36876179,211.92,211.91,0.03]
[1756915149512,8.63943325,211.92,211.91,0.03]
[1756915150207,3.92067146,211.92,211.91,0.03]
[1756915150720,8.63943325,211.92,211.91,0.03]
[1756915154399,5.36876179,211.92,211.91,0.03]
[1756915154602,8.63943325,211.92,211.91,0.03]
[1756915157516,5.36876179,211.92,211.91,0.03]
[1756915157712,8.63943325,211.92,211.91,0.03]
[1756915158700,0.06,211.94,211.91,0.03]
[1756915159025,38.05,211.93,211.91,0.03]
[1756915159327,3.27067146,211.92,211.91,0.03]
[1756915159824,3.94067146,211.92,211.91,0.03]
[1756915160223,3.27067146,211.92,211.91,0.03]
[1756915160607,37.38,211.93,211.91,0.03]
[1756915160806,3.27067146,211.92,211.91,0.03]
[1756915161517,3.94067146,211.92,211.91,0.03]
[1756915161709,3.27067146,211.92,211.91,0.03]
[1756915161911,3.94067146,211.92,211.91,0.03]
[1756915163918,0.67,211.92,211.91,0.03]
[1756915164113,40.65067146,211.93,211.91,0.03]
[1756915164315,40.61067146,211.93,211.91,0.03]
[1756915164623,0.06,211.92,211.91,0.03]
[1756915165704,4.00067146,211.92,211.91,0.03]
[1756915167906,0.73,211.92,211.91,0.03]
[1756915168207,21.80211909,211.92,211.91,0.03]
[1756915169224,8.71943325,211.92,211.91,0.03]
[1756915178326,0.06,211.92,211.91,0.03]
[1756915178636,59.18211909,211.92,211.88,0.03]
[1756915178819,3.27067146,211.89,211.88,0.03]
[1756915179016,40.67067146,211.89,211.88,0.03]
[1756915179220,67.34067146,211.89,211.88,0.03]
[1756915180329,34.66010135,211.89,211.88,0.03]
[1756915180731,72.04010135,211.89,211.88,0.03]
[1756915180938,46.04010135,211.89,211.88,0.03]
[1756915184339,33.99054685,211.87,211.86,0.03]
[1756915184529,74.8441197,211.87,211.86,0.03]
[1756915184730,75.5041197,211.87,211.86,0.03]
[1756915185038,75.5041197,211.87,211.82,0.03]
[1756915185339,42.3533573,211.83,211.79,0.03]
[1756915185527,42.3533573,211.8,211.77,0.03]
[1756915185727,3.27067146,211.78,211.77,0.03]
[1756915185927,6.78424431,211.78,211.77,0.03]
[1756915186124,7.44424431,211.78,211.77,0.03]
[1756915186328,12.1661255,211.78,211.77,0.03]
[1756915188450,48.8461255,211.78,211.77,0.03]
[1756915188747,49.5061255,211.78,211.77,0.03]
[1756915189130,45.99255265,211.78,211.77,0.03]
[1756915190251,49.49251902,211.78,211.77,0.03]
[1756915190637,51.38614461,211.78,211.77,0.03]
[1756915190838,14.04614461,211.78,211.77,0.03]
[1756915191059,48.07547315,211.78,211.77,0.03]
[1756915191348,51.34614461,211.78,211.77,0.03]
[1756915196261,47.84617824,211.78,211.77,0.03]
[1756915199968,40.49067146,211.78,211.77,0.69]
[1756915200547,3.27067146,211.78,211.77,0.03]
[1756915201485,3.93067146,211.78,211.77,0.03]
[1756915201649,3.27067146,211.78,211.77,0.03]
[1756915201845,26.0,211.79,211.77,0.03]
[1756915202159,0.66,211.78,211.77,0.03]
[1756915202350,26.66,211.78,211.77,0.03]
[1756915202670,67.13067146,211.78,211.77,0.03]
[1756915203060,29.93067146,211.78,211.77,0.03]
[1756915203364,40.45067146,211.78,211.77,0.03]
[1756915203569,63.2,211.78,211.77,0.03]
[1756915203875,67.92188119,211.78,211.77,0.03]
[1756915204077,76.57394348,211.78,211.74,0.03]
[1756915204371,3.27067146,211.77,211.74,0.03]
[1756915204562,32.61568608,211.78,211.74,0.03]
[1756915204871,67.13067146,211.77,211.74,0.03]
[1756915205164,66.47067146,211.77,211.74,0.03]
[1756915205564,68.9781556,211.77,211.74,0.03]
[1756915205865,4.72188119,211.78,211.74,0.69]
[1756915206046,42.3381556,211.77,211.74,0.69]
[1756915206245,1.89362558,211.8,211.77,0.66]
[1756915206469,42.3381556,211.79,211.75,0.66]
[1756915206666,5.1181556,211.77,211.74,0.03]
[1756915206858,42.3581556,211.77,211.74,0.03]
[1756915207364,37.24,211.77,211.74,0.03]
[1756915207567,43.0181556,211.77,211.74,0.03]
[1756915207949,47.74025976,211.77,211.74,0.03]
[1756915208572,47.08025976,211.77,211.74,0.03]
[1756915208868,37.24,211.77,211.76,0.69]
[1756915209053,133.4,211.78,211.76,0.69]
[1756915209259,37.24,211.77,211.76,0.03]
[1756915209766,42.3581556,211.77,211.76,0.03]
[1756915210946,37.24,211.77,211.76,0.03]
[1756915211485,42.3581556,211.77,211.76,0.03]
[1756915211776,47.08025976,211.77,211.76,0.03]
[1756915211980,47.74025976,211.77,211.76,0.03]
[1756915212458,77.23007873,211.77,211.76,0.03]
[1756915214276,71.45192313,211.77,211.76,0.03]
[1756915214456,68.3581556,211.77,211.76,0.03]
[1756915214655,73.08025976,211.77,211.76,0.03]
[1756915215370,68.3581556,211.77,211.76,0.03]
[1756915216157,68.3581556,211.77,211.76,0.72]
[1756915216357,5.1181556,211.77,211.76,0.72]
[1756915216567,37.16,211.77,211.76,0.72]
[1756915216976,133.4,211.78,211.76,0.72]
[1756915217283,0.06,211.79,211.78,13.59559401]
[1756915217482,37.22,211.79,211.78,14.28559401]
[1756915219779,37.22,211.79,211.78,13.59559401]
[1756915219976,0.06,211.79,211.78,24.1256308]
[1756915220178,0.06,211.79,211.78,19.0074752]
[1756915220475,0.06,211.79,211.78,19.40374961]
[1756915220678,0.06,211.79,211.78,14.28559401]
[1756915220972,0.06,211.79,211.78,19.40374961]
[1756915221977,0.06,211.79,211.78,14.28559401]
[1756915222162,0.06,211.79,211.78,19.40374961]
[1756915222361,0.06,211.79,211.78,14.28559401]
[1756915222669,0.06,211.79,211.78,13.59559401]
[1756915222867,0.06,211.79,211.78,14.28559401]
[1756915223064,0.06,211.79,211.78,13.59559401]
[1756915224377,0.06,211.79,211.78,14.28559401]
[1756915224862,0.06,211.79,211.78,13.59559401]
[1756915225064,0.06,211.79,211.78,19.40374961]
[1756915225475,0.06,211.79,211.78,13.59559401]
[1756915227983,0.06,211.79,211.78,14.28559401]
[1756915228485,0.06,211.79,211.78,13.59559401]
[1756915228666,0.06,211.79,211.78,24.1256308]
[1756915231376,0.06,211.79,211.78,24.40995394]
[1756915231577,0.06,211.79,211.78,29.52810954]
[1756915231780,0.06,211.82,211.81,44.99807275]
[1756915231977,0.06,211.82,211.81,45.56461823]
[1756915232295,0.06,211.82,211.81,40.56991715]
[1756915232504,0.06,211.82,211.81,45.68807275]
[1756915233204,0.06,211.82,211.81,50.40928515]
[1756915235197,0.06,211.82,211.81,45.29112955]
[1756915235375,0.06,211.82,211.81,50.40928515]
[1756915235992,0.06,211.82,211.81,87.46928515]
[1756915237796,0.06,211.87,211.86,13.59559401]
[1756915238000,0.06,211.87,211.86,55.77374961]
[1756915238303,0.06,211.87,211.86,56.46374961]
[1756915238489,0.06,211.87,211.86,58.35558398]
[1756915238973,0.06,211.87,211.86,63.07568215]
[1756915239481,0.06,211.87,211.86,63.36000529]
[1756915239677,0.06,211.9,211.89,39.87991715]
[1756915239883,0.06,211.9,211.89,82.01807275]
[1756915240089,0.06,211.9,211.89,82.70807275]
[1756915240690,0.06,211.9,211.89,84.59937041]
[1756915241001,0.06,211.9,211.89,89.3188003]
[1756915241214,0.06,211.92,211.9,13.59559401]
[1756915241386,0.06,211.92,211.91,24.68250648]
[1756915241585,0.06,211.92,211.91,25.37250648]
[1756915241999,0.06,211.92,211.91,57.27435088]
[1756915242287,0.06,211.92,211.91,19.40374961]
[1756915242495,0.06,211.92,211.91,82.44374961]
[1756915242684,0.06,211.92,211.91,45.40374961]
[1756915242887,0.06,211.92,211.91,88.36403175]
[1756915243602,0.06,211.92,211.91,89.04403175]
[1756915244306,0.06,211.92,211.91,88.36403175]
[1756915244506,0.06,211.92,211.91,89.04403175]
[1756915245212,0.06,211.92,211.91,94.16218735]
[1756915245794,0.06,211.92,211.91,94.44651049]
[1756915246003,0.06,211.92,211.91,69.01278862]
[1756915247110,0.06,211.92,211.91,68.44651049]
[1756915248306,0.06,211.94,211.93,13.87991715]
[1756915248514,0.06,211.94,211.93,56.01807275]
[1756915248689,0.06,211.94,211.93,57.26429744]
[1756915249225,0.06,211.95,211.94,18.31391051]
[1756915249413,0.06,211.95,211.94,24.11206611]
[1756915249611,0.06,211.95,211.94,18.31391051]
[1756915249787,0.72,211.95,211.94,60.49206611]
[1756915249993,0.06,211.95,211.94,60.49206611]
[1756915250192,0.06,211.95,211.94,62.02258723]
[1756915250418,0.06,211.96,211.95,0.28432314]
[1756915250631,0.06,211.96,211.95,19.67807275]
[1756915250839,0.06,211.97,211.96,13.59559401]
[1756915251106,0.06,211.97,211.96,56.51374961]
[1756915251290,0.06,211.97,211.96,61.2316209]
[1756915253717,0.06,211.97,211.96,24.1116209]
[1756915254024,0.06,211.97,211.96,61.2116209]
[1756915255116,0.06,211.97,211.96,24.1116209]
[1756915255421,0.06,211.97,211.96,60.5116209]
[1756915256004,0.06,211.97,211.96,25.32220344]
[1756915256301,0.06,211.97,211.96,62.38220344]
[1756915256496,0.06,211.97,211.96,63.06220344]
[1756915256912,0.06,211.97,211.96,62.38220344]
[1756915257899,0.06,211.97,211.96,63.06220344]
[1756915258727,0.06,212.0,211.99,39.59559401]
[1756915258898,0.06,212.0,211.99,82.03807275]
[1756915259098,0.06,212.0,211.99,82.01807275]
[1756915259315,0.06,212.0,211.99,44.99807275]
[1756915259598,0.06,212.0,211.99,49.71527639]
[1756915259793,0.06,212.0,211.99,51.60568023]
[1756915260010,0.06,212.0,211.99,88.62568023]
[1756915260220,0.06,212.0,211.99,89.30568023]
[1756915260719,0.06,212.0,211.99,88.62568023]
[1756915261320,0.06,212.02,212.01,0.28432314]
[1756915261501,0.06,212.02,212.01,56.01807275]
[1756915261698,0.06,212.02,212.01,60.73483139]
[1756915261916,0.06,212.02,212.01,25.60505656]
[1756915262216,0.06,212.02,212.01,62.62505656]
[1756915262719,0.06,212.02,212.01,63.30505656]
[1756915263595,0.2,212.04,212.03,18.59623087]
[1756915263801,0.66,212.09,212.07,39.59559401]
[1756915264100,0.66,212.09,212.08,18.71374961]
[1756915264298,9.83132369,212.18,212.09,13.59559401]
[1756915264507,4.71316809,212.18,212.13,13.59559401]
[1756915264717,5.1181556,212.17,212.13,13.59559401]
[1756915264899,0.66,212.16,212.13,13.59559401]
[1756915265305,0.66,212.15,212.13,13.59559401]
[1756915265512,5.1181556,212.17,212.13,13.59559401]
[1756915265513,0.66,212.14,212.13,13.59559401]
[1756915265826,0.66,212.14,212.13,18.71374961]
[1756915266607,0.66,212.14,212.13,60.42784002]
[1756915266802,4.91209891,212.22,212.13,60.42784002]
[1756915267119,0.66,212.16,212.15,13.59559401]
[1756915267812,0.66,212.16,212.15,18.30924001]
[1756915268203,0.66,212.16,212.15,21.57012115]
[1756915270325,0.66,212.16,212.12,5.1181556]
[1756915270505,0.66,212.15,212.14,13.59559401]
[1756915270835,0.66,212.15,212.14,16.85647515]
[1756915271028,0.66,212.15,212.14,50.57559401]
[1756915271201,0.66,212.15,212.14,16.85647515]
[1756915271605,0.66,212.15,212.14,50.57559401]
[1756915271927,0.66,212.15,212.14,13.59559401]
[1756915275506,0.66,212.15,212.14,18.30946221]
[1756915276124,0.66,212.15,212.14,13.59559401]
[1756915276338,0.66,212.15,212.14,50.57559401]
[1756915277129,0.66,212.15,212.14,13.59559401]
[1756915277312,0.66,212.15,212.07,12.64068567]
[1756915277313,8.63452714,212.15,212.05,18.3114629]
[1756915277514,3.26088114,212.1,212.07,13.59559401]
[1756915277714,0.68,212.09,212.07,13.59559401]
[1756915277914,0.68,212.08,212.07,13.59559401]
[1756915278918,0.68,212.08,212.07,18.31101816]
[1756915279123,3.26088114,212.11,212.07,18.31101816]
[1756915279316,0.68,212.1,212.07,55.29101816]
[1756915279510,0.68,212.09,212.07,55.29101816]
[1756915280128,3.26088114,212.11,212.07,13.59559401]
[1756915280329,3.94088114,212.08,212.01,14.1766888]
[1756915280531,0.68,212.07,212.01,14.1766888]
[1756915280732,3.26088114,212.02,211.99,4.73160865]
[1756915281034,3.26088114,212.0,211.99,0.03]
[1756915281409,3.94088114,212.0,211.99,0.03]
[1756915284036,0.68,212.0,211.99,0.03]
[1756915284332,3.26088114,212.01,211.99,0.03]
[1756915284736,3.94088114,212.01,211.99,0.03]
[1756915284914,26.0,212.05,211.99,0.03]
[1756915284915,3.94088114,212.0,211.99,0.03]
[1756915287140,8.65786227,212.0,211.99,0.03]
[1756915287819,42.37698113,212.0,211.99,0.03]
[1756915288014,45.63786227,212.0,211.99,0.03]
[1756915288216,3.94088114,212.0,211.99,0.03]
[1756915289015,0.68,212.02,211.99,0.03]
[1756915289339,3.94088114,212.02,211.99,0.03]
[1756915289839,3.94088114,212.01,211.99,0.03]
[1756915290336,3.26088114,212.01,211.99,0.03]
[1756915290516,0.68,212.0,211.99,0.03]
[1756915290714,3.94088114,212.0,211.99,0.03]
[1756915291140,0.68,212.0,211.99,0.03]
[1756915291841,3.26088114,212.02,211.99,0.03]
[1756915292029,134.0,212.04,211.99,0.03]
[1756915292237,3.94088114,212.04,211.99,13.62559401]
[1756915292535,3.94088114,212.03,211.99,18.3426235]
[1756915292937,3.26088114,212.05,211.99,22.31350464]
[1756915294018,3.26088114,212.02,211.99,0.03]
[1756915294341,3.26088114,212.0,211.99,0.03]
[1756915294716,3.94088114,212.0,211.99,0.03]
[1756915294920,37.68,212.03,211.99,0.03]
[1756915295126,37.68,212.07,212.0,16.85647515]
[1756915295429,3.26088114,212.06,212.0,16.85647515]
[1756915295627,3.26088114,212.05,212.0,13.59559401]
[1756915295836,3.26088114,212.05,212.0,14.30559401]
[1756915296140,3.26088114,212.05,211.99,3.29088114]
[1756915296141,0.68,212.11,212.03,3.26088114]
[1756915296354,3.26088114,212.1,212.05,13.59559401]
[1756915296549,3.94088114,212.1,212.05,18.31127991]
[1756915296925,3.94088114,212.09,212.05,18.31127991]
[1756915297228,3.26088114,212.1,212.07,13.59559401]
[1756915297540,3.94088114,212.1,212.06,13.59559401]
[1756915297743,3.26088114,212.07,211.99,0.03]
[1756915297939,37.0,212.06,212.0,13.59559401]
[1756915298144,0.68,212.05,211.99,0.03]
[1756915298728,4.7160913,212.04,211.99,0.03]
[1756915298928,3.26088114,212.0,211.99,0.03]
[1756915299653,7.94212121,212.0,211.99,0.03]
[1756915300030,7.94212121,212.01,211.99,0.03]
[1756915301049,8.62212121,212.0,211.99,0.03]
[1756915301451,0.68,212.0,211.99,0.03]
[1756915301656,8.62212121,212.0,211.99,0.03]
[1756915302043,13.33910234,212.0,211.99,0.03]
[1756915303134,5.39698113,212.0,211.99,0.03]
[1756915303335,13.33910234,212.0,211.99,0.03]
[1756915305452,5.39698113,212.0,211.99,0.03]
[1756915305634,13.33910234,212.0,211.99,0.03]
[1756915307338,76.33910234,212.0,211.99,0.03]
[1756915309561,68.39698113,212.0,211.99,0.03]
[1756915309750,76.33910234,212.0,211.99,0.03]
[1756915314833,68.39698113,212.0,211.99,0.03]
[1756915315041,26.0,211.97,211.96,0.03]
[1756915315261,70.94212121,211.97,211.96,0.03]
[1756915315440,71.63212121,211.97,211.96,0.03]
[1756915316756,84.29189114,211.97,211.96,0.03]
[1756915316953,76.34976993,211.97,211.96,0.03]
[1756915319552,71.67812081,211.97,211.96,0.03]
[1756915320155,71.67812081,211.97,211.94,0.03]
[1756915320350,26.0,211.92,211.91,0.03]
[1756915320669,83.20181085,211.92,211.88,0.03]
[1756915320878,3.27047209,211.89,211.88,0.03]
[1756915321069,3.27047209,211.89,211.86,0.03]
[1756915321070,26.0,211.87,211.86,0.03]
[1756915321393,29.27047209,211.87,211.86,0.03]
[1756915321553,34.64662895,211.87,211.86,0.03]
[1756915321755,76.36650434,211.87,211.86,0.03]
[1756915322966,39.36650434,211.87,211.86,0.03]
[1756915323156,76.36650434,211.87,211.86,0.03]
[1756915324878,39.36650434,211.87,211.86,0.03]
[1756915325057,76.36650434,211.87,211.86,0.03]
[1756915325674,39.36650434,211.87,211.86,0.03]
[1756915326052,76.36650434,211.87,211.86,0.03]
[1756915327073,39.36650434,211.87,211.86,0.03]
[1756915327272,76.36650434,211.87,211.86,0.03]
[1756915329462,80.17210026,211.87,211.86,0.03]
[1756915332075,31.40987539,211.87,211.86,0.03]
[1756915332280,43.17210026,211.87,211.86,0.03]
[1756915332696,80.17210026,211.87,211.86,0.03]
[1756915332875,43.17210026,211.87,211.86,0.03]
[1756915333081,80.17210026,211.87,211.86,0.03]
[1756915334198,43.17210026,211.87,211.86,0.03]
[1756915334493,53.48210026,211.87,211.86,0.03]
[1756915335298,54.15210026,211.87,211.86,0.03]
[1756915337774,54.15210026,211.87,211.83,0.03]
[1756915337775,26.0,211.84,211.83,0.03]
[1756915337977,86.52444974,211.84,211.83,0.03]
[1756915338177,87.19444974,211.84,211.83,0.03]
[1756915338381,91.91499354,211.84,211.83,0.03]
[1756915338781,79.48276867,211.84,211.83,0.03]
[1756915338994,4.72033159,211.85,211.83,0.73]
[1756915339197,11.76222487,211.84,211.83,0.73]
[1756915339505,48.76222487,211.84,211.83,0.03]
[1756915339883,48.76222487,211.84,211.83,0.73]
[1756915340214,26.0,211.87,211.83,0.73]
[1756915340379,26.0,211.87,211.83,0.03]
[1756915340380,37.76222487,211.84,211.83,0.03]
[1756915340703,48.76222487,211.84,211.83,0.03]
[1756915340901,11.76222487,211.84,211.83,0.73]
[1756915341113,48.76222487,211.84,211.83,0.73]
[1756915341475,42.11380153,211.84,211.83,0.73]
[1756915341681,42.11380153,211.84,211.83,0.03]
[1756915342210,46.83434533,211.84,211.83,0.03]
[1756915342884,47.50434533,211.84,211.83,0.03]
[1756915343088,68.3905438,211.84,211.83,0.03]
[1756915343406,73.50434533,211.84,211.83,0.03]
[1756915344110,72.83434533,211.84,211.83,0.03]
[1756915344404,73.50434533,211.84,211.83,0.03]
[1756915346281,68.3905438,211.84,211.83,0.03]
[1756915346490,73.50434533,211.84,211.83,0.03]
[1756915347309,73.50434533,211.84,211.81,0.03]
[1756915347609,5.11380153,211.83,211.81,0.03]
[1756915347810,5.78380153,211.83,211.81,0.03]
[1756915348110,30.7205438,211.84,211.81,0.03]
[1756915348286,42.11380153,211.83,211.82,0.8]
[1756915348788,134.26,211.87,211.82,0.8]
[1756915348789,5.11380153,211.86,211.82,0.8]
[1756915348985,37.0,211.85,211.83,13.59559401]
[1756915349282,37.0,211.84,211.83,13.59559401]
[1756915349687,37.0,211.84,211.83,14.29559401]
[1756915350111,37.0,211.84,211.83,13.59559401]
[1756915350411,37.0,211.84,211.83,14.29559401]
[1756915350601,37.0,211.84,211.82,0.1]
[1756915350811,37.0,211.84,211.82,0.8]
[1756915351099,37.0,211.84,211.82,0.1]
[1756915351300,37.0,211.84,211.83,0.7]
[1756915352003,37.0,211.84,211.82,0.1]
[1756915352207,42.11380153,211.84,211.82,0.1]
[1756915352590,46.83436713,211.84,211.82,0.1]
[1756915352788,41.7205656,211.84,211.82,0.1]
[1756915352990,5.11380153,211.83,211.82,0.1]
[1756915353693,5.78380153,211.83,211.82,0.1]
[1756915354309,10.50456818,211.83,211.82,0.1]
[1756915354500,4.72076665,211.83,211.82,0.1]
[1756915354698,9.83456818,211.83,211.82,0.1]
[1756915355215,4.72076665,211.83,211.82,0.1]
[1756915355505,46.83456818,211.83,211.82,0.1]
[1756915355712,5.11380153,211.83,211.82,0.1]
[1756915355915,42.11380153,211.83,211.82,0.1]
[1756915356814,46.83456818,211.83,211.82,0.1]
[1756915357217,47.50456818,211.83,211.82,0.1]
[1756915357402,46.83456818,211.83,211.82,0.1]
[1756915358213,41.72076665,211.83,211.82,0.1]
[1756915358395,31.11380153,211.84,211.82,0.1]
[1756915358597,37.0,211.83,211.82,0.8]
[1756915358804,37.0,211.83,211.82,0.1]
[1756915359316,37.0,211.83,211.82,0.8]
[1756915359490,0.06,211.87,211.82,5.91380153]
[1756915359692,37.0,211.86,211.85,13.59559401]
[1756915359899,37.0,211.86,211.85,19.40939554]
[1756915360311,37.0,211.86,211.85,14.29559401]
[1756915360516,0.06,211.87,211.85,19.01591499]
[1756915360809,37.06,211.87,211.86,14.29559401]
[1756915361718,42.17380153,211.87,211.83,13.59559401]
[1756915361896,5.11380153,211.85,211.83,14.31559401]
[1756915362089,37.0,211.84,211.83,14.31559401]
[1756915362504,37.0,211.84,211.83,24.15016219]
[1756915362697,37.0,211.84,211.83,19.03636066]
[1756915364518,37.0,211.84,211.83,13.59559401]
[1756915366013,42.11380153,211.84,211.82,0.1]
[1756915367512,37.06,211.84,211.82,0.1]
[1756915368610,42.17380153,211.84,211.82,0.1]
[1756915368929,37.06,211.84,211.82,0.1]
[1756915371437,5.76380153,211.83,211.82,0.1]
[1756915374427,42.76380153,211.83,211.82,0.1]
[1756915378327,47.48456818,211.83,211.82,0.1]
[1756915378529,42.76380153,211.83,211.82,0.1]
[1756915380334,47.48456818,211.83,211.82,0.1]
[1756915380535,37.65,211.83,211.82,0.1]
[1756915380733,5.76380153,211.83,211.82,0.1]
[1756915381041,42.76380153,211.83,211.82,0.1]
[1756915382117,47.48456818,211.83,211.82,0.1]
[1756915382714,0.65,211.83,211.82,0.1]
[1756915383030,42.74380153,211.83,211.82,0.1]
[1756915383230,5.76380153,211.83,211.82,0.1]
[1756915383449,42.74380153,211.83,211.82,0.1]
[1756915384303,5.76380153,211.83,211.82,0.1]
[1756915384517,47.46456818,211.83,211.82,0.1]
[1756915385130,5.76380153,211.83,211.82,0.1]
[1756915385528,0.06,211.84,211.83,13.59559401]
[1756915385827,37.04,211.84,211.83,14.31559401]
[1756915386029,37.04,211.84,211.83,13.59559401]
[1756915386226,37.04,211.84,211.82,0.1]
[1756915386425,37.04,211.84,211.83,13.59559401]
[1756915386729,37.04,211.84,211.82,0.1]
[1756915387110,37.04,211.84,211.82,14.41559401]